bitfinex-derivatives/quotes_ETHF0:USTF0_20250224
["timestamp","ask_amount","ask_price","bid_price","bid_amount"]
[1740424809413,0.75343,2654.2,2654.1,6.3358]
[1740424809619,0.75343,2654.2,2654.1,7.08926]
[1740424809827,0.75343,2654.3,2654.2,0.75341]
[1740424810026,0.75342,2654.3,2654.2,0.75342]
[1740424810723,0.75343,2654.2,2654.1,6.3358]
[1740424810923,0.75343,2654.2,2654.1,3.128]
[1740424811827,0.00565707,2654.5,2654.1,6.3358]
[1740424812029,0.00565707,2654.5,2654.4,3.96117]
[1740424812628,0.75899707,2654.5,2654.4,3.2078]
[1740424812932,0.75899707,2654.5,2653.9,1.88375]
[1740424812933,0.75346,2654.1,2654.0,3.2078]
[1740424813121,0.75354,2653.8,2653.7,6.8979]
[1740424813322,0.75354,2653.8,2653.7,3.6901]
[1740424813634,0.75354,2653.8,2653.7,6.3298]
[1740424813822,0.75354,2653.8,2653.7,3.122]
[1740424814631,1.1311,2654.3,2653.9,1.88379]
[1740424814827,0.7534,2654.3,2654.2,3.2078]
[1740424815123,0.75345,2654.2,2653.9,3.2078]
[1740424815322,0.75348,2654.1,2654.0,0.75347]
[1740424815521,0.75348,2654.1,2654.0,40.8]
[1740424816432,0.75348,2654.0,2653.9,3.9613]
[1740424816730,0.75348,2654.0,2653.9,44.7613]
[1740424816931,0.75348,2654.0,2653.9,44.0078]
[1740424817128,0.75348,2654.0,2653.9,3.96131]
[1740424817522,0.75348,2654.0,2653.9,44.76131]
[1740424817734,1.88907707,2654.5,2653.9,3.2078]
[1740424817936,0.00565707,2654.5,2653.9,3.2078]
[1740424818230,0.00565707,2654.5,2653.7,3.122]
[1740424818231,0.75900707,2654.5,2654.4,0.75337]
[1740424818535,0.75899707,2654.5,2654.4,0.75337]
[1740424818736,0.75899707,2654.5,2654.3,3.12]
[1740424818737,0.00565707,2654.5,2654.3,3.12]
[1740424819132,0.75337,2654.4,2654.3,3.87339]
[1740424819333,0.75337,2654.4,2654.3,3.12]
[1740424821232,0.00565707,2654.5,2654.2,6.3218]
[1740424822235,0.00565707,2654.5,2654.2,3.2078]
[1740424824339,0.00565707,2654.5,2654.3,3.114]
[1740424824641,0.00565707,2654.5,2654.4,0.5525]
[1740424824842,0.30013064,2655.8,2654.4,4.5595]
[1740424825041,0.30013064,2655.8,2655.1,3.2078]
[1740424825244,0.75314,2655.3,2655.2,0.75313]
[1740424825443,0.75314,2655.2,2655.1,6.3338]
[1740424825642,1.88261,2655.6,2655.1,6.3338]
[1740424825847,0.75312,2655.3,2655.2,0.75312]
[1740424826141,1.88251,2655.7,2655.1,6.3338]
[1740424826142,0.00565707,2655.6,2655.1,6.33945707]
[1740424826344,0.75314,2655.2,2655.1,7.09260707]
[1740424827141,0.75314,2655.2,2655.1,6.33945707]
[1740424827445,0.75314,2655.2,2655.1,7.09260707]
[1740424827947,0.75314,2655.2,2655.1,6.33945707]
[1740424828143,0.75314,2655.2,2655.1,3.21345707]
[1740424828648,0.75314,2655.2,2655.1,0.00565707]
[1740424829442,3.96094,2655.2,2655.1,0.00565707]
[1740424829645,1.34064,2655.2,2655.1,0.00565707]
[1740424833639,0.75314,2655.2,2655.1,0.00565707]
[1740424834242,0.00565707,2655.6,2655.1,6.32745707]
[1740424834556,0.00565707,2655.6,2655.4,3.2078]
[1740424834744,0.00565707,2655.6,2655.5,3.6469]
[1740424835054,0.9436271,2656.3,2655.5,47.4289]
[1740424835353,0.75286,2656.2,2656.1,3.2078]
[1740424835537,0.75286,2656.2,2656.1,3.12]
[1740424836147,0.75846707,2656.4,2656.1,6.3278]
[1740424836344,0.75283,2656.3,2656.2,0.5329]
[1740424837146,1.88213,2656.3,2655.7,3.2078]
[1740424837442,0.00565707,2656.4,2656.0,3.2078]
[1740424837643,0.00565707,2656.4,2655.8,3.125]
[1740424838051,0.75847707,2656.4,2655.8,3.125]
[1740424838249,0.00565707,2656.4,2655.8,3.125]
[1740424838451,0.75285,2656.3,2655.8,3.125]
[1740424838755,0.00565707,2656.4,2655.8,3.125]
[1740424839053,0.7529,2656.1,2655.8,3.125]
[1740424839252,0.00565707,2656.4,2656.0,3.2078]
[1740424839444,0.00565707,2656.4,2656.3,3.2078]
[1740424840253,0.75845707,2656.4,2656.3,3.2078]
[1740424840754,0.75845707,2656.4,2656.2,3.119]
[1740424840755,0.00565707,2656.4,2656.2,3.119]
[1740424841047,0.75292,2656.0,2655.9,3.6971]
[1740424841355,0.7529,2656.1,2655.9,3.6971]
[1740424841551,1.88774707,2656.4,2655.9,3.6971]
[1740424841847,0.75292,2656.0,2655.9,3.6971]
[1740424842151,1.88774707,2656.4,2655.9,3.6971]
[1740424842346,0.75288,2656.2,2656.0,3.2078]
[1740424842546,0.00565707,2656.4,2656.0,3.2078]
[1740424842941,0.75289,2656.1,2656.0,3.2078]
[1740424843146,0.75297,2655.8,2655.7,3.2078]
[1740424843452,0.753,2655.7,2655.6,0.5629]
[1740424843647,0.75299,2655.8,2655.6,0.5629]
[1740424843840,3.6588,2656.3,2655.6,0.5629]
[1740424844044,0.00565707,2656.4,2655.8,3.2078]
[1740424844353,0.00565707,2656.4,2656.1,3.2078]
[1740424844556,0.75286,2656.2,2656.1,3.2078]
[1740424845352,0.75284,2656.3,2656.1,3.2078]
[1740424845547,0.75284,2656.3,2656.2,0.5622]
[1740424847146,0.00565707,2656.4,2656.2,0.5622]
[1740424847350,0.75283,2656.3,2656.2,0.5622]
[1740424847658,0.00565707,2656.4,2656.2,0.5622]
[1740424848055,0.00565707,2656.4,2656.3,3.114]
[1740424848250,0.75846707,2656.4,2656.3,3.114]
[1740424848462,0.00565707,2656.4,2656.3,3.114]
[1740424849053,0.75845707,2656.4,2656.3,3.114]
[1740424849256,0.00565707,2656.4,2656.3,3.114]
[1740424849754,0.00565707,2656.4,2656.3,9.114]
[1740424849956,3.2078,2656.7,2656.2,0.5622]
[1740424850348,1.88178,2656.8,2656.2,0.5622]
[1740424850553,0.75271,2656.8,2656.3,3.128]
[1740424850755,1.0727,2657.0,2656.4,3.2078]
[1740424851053,0.00369084,2657.0,2656.8,3.2078]
[1740424851360,0.75634084,2657.0,2656.8,3.2078]
[1740424851556,0.75266,2656.9,2656.8,3.7838]
[1740424851851,0.75266,2656.9,2656.8,3.2078]
[1740424852057,0.75277,2656.5,2656.4,0.005646]
[1740424852258,0.75277,2656.6,2656.4,0.005646]
[1740424852450,0.00369084,2657.0,2656.5,3.2078]
[1740424852646,0.75634084,2657.0,2656.8,3.2078]
[1740424852963,0.00369084,2657.0,2656.8,6.3478]
[1740424853258,0.75632084,2657.0,2656.9,0.5776]
[1740424856147,0.00369084,2657.0,2656.9,0.5776]
[1740424857063,1.0844,2658.0,2656.9,6.5776]
[1740424857262,0.75246,2657.6,2657.5,3.2078]
[1740424857460,1.88112,2657.7,2657.4,3.138]
[1740424857661,1.88112,2657.7,2657.3,3.143]
[1740424857662,0.75252,2657.4,2657.3,3.143]
[1740424857856,1.88123,2657.6,2657.1,3.143]
[1740424858061,0.75258,2657.2,2657.1,3.143]
[1740424860367,3.76212,2657.8,2657.1,3.143]
[1740424860368,1.88114,2657.7,2657.1,3.143]
[1740424860563,0.75258,2657.2,2657.1,3.143]
[1740424860768,0.75242,2657.8,2657.1,6.3508]
[1740424860971,0.75241,2657.8,2657.6,3.2078]
[1740424861168,0.75244,2657.7,2657.6,3.2078]
[1740424861364,0.75252,2657.4,2657.3,3.2078]
[1740424861572,1.88095,2657.9,2657.3,6.3468]
[1740424861870,0.94057107,2658.0,2657.6,3.2078]
[1740424862169,1.88041,2658.7,2657.9,3.2078]
[1740424862365,2.08610421,2658.8,2657.7,3.7254]
[1740424862566,3.2078,2658.5,2658.0,0.005646]
[1740424862773,0.75232,2658.1,2658.0,0.005646]
[1740424863276,0.75232,2658.1,2658.0,6e-06]
[1740424863569,3.90932,2658.1,2658.0,6e-06]
[1740424863871,9.79724559,2658.1,2657.1,3.2078]
[1740424864062,3.2078,2657.7,2656.7,3.7715]
[1740424864266,0.75269,2656.8,2656.7,3.7715]
[1740424864574,0.75277,2656.5,2656.4,3.2078]
[1740424864775,0.75286,2656.2,2656.1,3.2078]
[1740424866678,1.88209,2656.3,2655.9,0.005646]
[1740424866878,0.75292,2656.0,2655.9,0.005646]
[1740424867376,0.7533,2654.7,2654.5,3.2078]
[1740424868175,1.88301,2655.0,2654.4,3.2078]
[1740424868374,1.88308,2654.9,2654.4,3.2078]
[1740424868576,0.005646,2655.0,2654.4,3.213446]
[1740424868884,1.88308,2654.9,2654.5,40.8]
[1740424869085,0.75331,2654.6,2654.5,40.8]
[1740424869481,1.88308,2654.9,2654.4,0.005646]
[1740424869687,0.75334,2654.5,2654.4,0.005646]
[1740424870386,0.75334,2654.5,2654.4,6e-06]
[1740424874388,0.75334,2654.5,2654.4,40.800006]
[1740424875682,3.2078,2654.7,2654.1,3.2078]
[1740424875884,3.2078,2654.2,2653.6,3.162]
[1740424876191,0.75368,2653.3,2653.2,3.2078]
[1740424876687,0.75377,2653.0,2652.9,3.757]
[1740424876882,0.75377,2653.0,2652.9,6.924]
[1740424877289,0.75377,2653.0,2652.9,47.724]
[1740424877881,0.75377,2653.0,2652.9,44.557]
[1740424878885,0.75377,2653.0,2652.9,41.3492]
[1740424879890,0.75382,2652.8,2652.7,0.005646]
[1740424880190,0.75382,2652.9,2652.8,0.75381]
[1740424880392,0.75382,2652.9,2652.8,4.49721]
[1740424880991,0.75382,2652.9,2652.8,3.7434]
[1740424882388,0.75382,2652.9,2652.8,44.5434]
[1740424882991,0.75382,2652.9,2652.8,45.29722]
[1740424883290,0.75373,2653.2,2653.1,0.75372]
[1740424883492,0.005646,2653.5,2653.1,0.75372]
[1740424883493,0.005646,2653.5,2653.1,6.3618]
[1740424883688,0.759276,2653.5,2653.4,3.2078]
[1740424883894,0.75371,2653.2,2653.1,6.3618]
[1740424884288,0.75371,2653.2,2653.1,47.91554]
[1740424884493,0.75371,2653.2,2653.1,47.1618]
[1740424884894,0.75371,2653.2,2653.1,40.8]
[1740424885590,0.75377,2653.0,2652.9,3.157]
[1740424885797,0.7538,2652.9,2652.8,3.7434]
[1740424885991,1.88436,2653.1,2652.7,0.005646]
[1740424885992,0.75382,2652.8,2652.7,0.005646]
[1740424886392,0.75382,2652.8,2652.7,6e-06]
[1740424886894,3.96162,2652.8,2652.7,6e-06]
[1740424887390,9.7417,2652.8,2651.5,3.2078]
[1740424887594,0.75417,2651.6,2651.5,3.2078]
[1740424888293,1.88518,2652.0,2651.2,1.1269]
[1740424888294,0.75425,2651.3,2651.2,1.1269]
[1740424888502,0.75425,2651.3,2651.2,4.2899]
[1740424888998,0.75425,2651.3,2651.2,5.04418]
[1740424889194,0.75425,2651.3,2651.2,4.2899]
[1740424889398,0.00565707,2651.5,2651.4,0.75422]
[1740424889697,3.7417,2652.8,2651.4,3.2078]
[1740424890007,0.75414,2651.7,2651.6,3.2078]
[1740424890898,0.75414,2651.7,2651.6,6.3698]
[1740424892491,0.75414,2651.7,2651.6,40.8]
[1740424892691,0.75419,2651.5,2651.4,3.161]
[1740424892891,0.75425,2651.3,2651.2,1.1269]
[1740424893099,0.75425,2651.3,2651.2,45.0889]
[1740424895097,3.2078,2651.5,2651.0,0.00565707]
[1740424895294,0.75431,2651.1,2651.0,7.07e-06]
[1740424896488,3.96211,2651.1,2651.0,7.07e-06]
[1740424896692,0.75431,2651.1,2651.0,7.07e-06]
[1740424897499,0.5734,2651.4,2651.0,7.07e-06]
[1740424897702,0.75431,2651.1,2651.0,7.07e-06]
[1740424898496,0.75431,2651.1,2651.0,0.56200707]
[1740424898795,0.75431,2651.1,2651.0,3.72000707]
[1740424900799,1.88556,2651.5,2651.0,3.72000707]
[1740424901004,0.75422,2651.5,2651.4,0.75421]
[1740424901294,0.00565707,2651.9,2651.4,5.03756]
[1740424901499,0.75413,2651.8,2651.7,0.75411]
[1740424901695,0.75417,2651.6,2651.5,3.96198]
[1740424902002,0.75417,2651.6,2651.5,3.2078]
[1740424903397,0.00565707,2651.9,2651.4,47.1598]
[1740424903594,0.75419,2651.5,2651.4,47.1598]
[1740424904199,0.75419,2651.5,2651.4,6.3598]
[1740424905305,0.00565707,2651.9,2651.4,6.3598]
[1740424905901,0.00565707,2651.9,2651.1,2.982]
[1740424906107,0.75431,2651.1,2651.0,7.07e-06]
[1740424906494,1.30941,2651.1,2651.0,7.07e-06]
[1740424907107,4.46841,2651.1,2651.0,7.07e-06]
[1740424907307,5.40682496,2651.1,2651.0,7.07e-06]
[1740424907503,11.78482496,2651.1,2651.0,7.07e-06]
[1740424908000,11.40682496,2651.1,2651.0,7.07e-06]
[1740424908602,5.40682496,2651.1,2651.0,7.07e-06]
[1740424908801,2.24782496,2651.1,2651.0,7.07e-06]
[1740424909308,5.40582496,2651.1,2651.0,7.07e-06]
[1740424909909,11.40582496,2651.1,2651.0,7.07e-06]
[1740424910208,5.40582496,2651.1,2651.0,7.07e-06]
[1740424910410,0.93841496,2651.1,2651.0,7.07e-06]
[1740424910602,1.69272496,2651.1,2651.0,7.07e-06]
[1740424910802,0.75431,2651.1,2651.0,3.16800707]
[1740424911205,1.48661496,2651.7,2651.0,3.16800707]
[1740424911406,0.75422,2651.4,2651.3,3.2078]
[1740424911602,0.75422,2651.4,2651.3,6.3778]
[1740424911803,0.75422,2651.4,2651.3,3.2078]
[1740424912002,0.75431,2651.1,2651.0,3.79740707]
[1740424912208,0.551,2651.8,2651.0,6.96840707]
[1740424912405,5.64108,2652.1,2651.4,3.2078]
[1740424912713,0.75417,2651.6,2651.5,3.175]
[1740424913104,0.00565707,2651.9,2651.5,3.175]
[1740424913407,0.00565707,2651.9,2651.7,3.2078]
[1740424913608,0.00565707,2651.9,2651.8,3.92711]
[1740424913812,5.09241,2652.8,2651.8,3.7626]
[1740424914008,0.75402,2652.1,2652.0,3.2078]
[1740424914508,0.9399668,2652.3,2651.8,3.7626]
[1740424914810,0.75408,2651.9,2651.8,3.7626]
[1740424915308,0.75408,2651.9,2651.8,4.5167]
[1740424915606,0.75408,2651.9,2651.8,3.7626]
[1740424915909,0.75411,2651.8,2651.7,6.3788]
[1740424916312,0.75963707,2652.3,2651.7,6.3788]
[1740424916513,0.75402,2652.1,2652.0,3.2078]
[1740424917510,0.75411,2651.8,2651.7,6.3788]
[1740424917713,0.75411,2651.8,2651.7,3.2078]
[1740424918016,0.75422,2651.4,2651.3,0.5742]
[1740424918205,0.75422,2651.4,2651.3,3.18]
[1740424919911,5.09309,2651.8,2651.3,3.18]
[1740424920120,0.551,2652.1,2651.4,3.2078]
[1740424920308,0.75418,2651.6,2651.5,0.75417]
[1740424920611,0.75422,2651.4,2651.3,3.18]
[1740424921515,2.43609,2652.1,2651.3,3.18]
[1740424921716,0.75417,2651.6,2651.5,3.96198]
[1740424921918,0.75417,2651.6,2651.5,3.2078]
[1740424922517,0.75407,2652.0,2651.9,0.75407]
[1740424922710,0.75407,2652.0,2651.9,6.3858]
[1740424923213,0.00565707,2652.3,2652.2,0.754]
[1740424923405,0.00565707,2652.3,2652.2,3.9618]
[1740424924014,3.76791,2653.7,2652.2,3.9618]
[1740424924015,3.2078,2653.8,2652.2,9.2078]
[1740424924214,2.957,2655.2,2652.2,9.2078]
[1740424924215,1.1434,2654.1,2653.4,3.2078]
[1740424924411,1.1434,2654.1,2653.4,6.3908]
[1740424924609,0.75363,2653.5,2653.4,3.183]
[1740424924806,1.88372,2654.0,2653.4,3.93663]
[1740424925011,4.3512,2654.1,2653.5,3.2078]
[1740424925219,0.00565707,2654.0,2653.7,3.2078]
[1740424925407,0.75351,2653.9,2653.8,3.183]
[1740424925717,0.75363,2653.5,2653.4,3.21345707]
[1740424925919,0.75363,2653.5,2653.4,0.00565707]
[1740424926614,0.75363,2653.5,2653.4,7.07e-06]
[1740424926916,6.75363,2653.5,2653.4,7.07e-06]
[1740424927118,7.45570091,2653.5,2653.4,7.07e-06]
[1740424927318,0.81608738,2653.5,2653.4,7.07e-06]
[1740424927521,1.61791045,2653.5,2653.4,7.07e-06]
[1740424928019,0.75363,2653.5,2653.4,7.07e-06]
[1740424929622,0.8161086,2653.5,2653.4,7.07e-06]
[1740424929827,6.8161086,2653.5,2653.4,7.07e-06]
[1740424930017,10.00510838,2653.5,2653.4,7.07e-06]
[1740424930219,4.00510838,2653.5,2653.4,7.07e-06]
[1740424930515,3.94263,2653.5,2653.4,7.07e-06]
[1740424930718,10.00511307,2653.5,2653.4,7.07e-06]
[1740424931720,4.00511307,2653.5,2653.4,7.07e-06]
[1740424932018,3.76835,2653.4,2652.5,3.7578]
[1740424932323,5.09235,2652.9,2652.3,3.187]
[1740424932523,0.75389,2652.6,2652.4,0.75394]
[1740424932814,3.2078,2652.9,2652.3,3.187]
[1740424933016,3.2078,2653.2,2652.3,3.187]
[1740424933219,3.2078,2653.2,2652.8,0.75381]
[1740424933413,3.194,2653.1,2652.3,0.00565707]
[1740424933613,3.2078,2652.9,2652.3,0.00565707]
[1740424933820,0.5375,2653.1,2652.3,0.00565707]
[1740424934215,0.75389,2652.6,2652.5,0.7539]
[1740424934416,1.88443,2653.0,2652.3,0.00565707]
[1740424934619,1.88443,2653.0,2652.4,0.75392]
[1740424935016,0.7539,2652.6,2652.5,0.75391]
[1740424935417,1.88443,2653.0,2652.3,0.00565707]
[1740424935622,0.75383,2652.8,2652.3,1.89055707]
[1740424935821,0.75383,2652.8,2652.7,0.75384]
[1740424936023,3.2078,2653.5,2652.5,6.4008]
[1740424936321,0.75373,2653.2,2653.1,0.75372]
[1740424936523,0.75374,2653.1,2653.0,0.75377]
[1740424936723,0.75377,2653.0,2652.9,7.15659]
[1740424937025,0.75377,2653.0,2652.9,6.4028]
[1740424937227,3.2078,2653.5,2652.9,6.4028]
[1740424937422,0.75369,2653.3,2653.2,0.75369]
[1740424937726,4.3498,2653.8,2652.9,8.28728]
[1740424937919,0.5703,2653.8,2653.2,3.2078]
[1740424938121,1.88393,2653.7,2653.3,0.75368]
[1740424938316,1.88393,2653.7,2652.9,8.28727]
[1740424938522,0.75368,2653.3,2653.2,0.75369]
[1740424938720,3.7781,2653.8,2652.9,8.28727]
[1740424938721,3.2078,2653.5,2652.9,3.2078]
[1740424938915,3.2078,2653.5,2652.8,3.193]
[1740424939122,3.7781,2653.8,2652.8,3.193]
[1740424939419,0.75375,2653.1,2653.0,3.96155]
[1740424940326,1.88393,2653.7,2653.0,3.2078]
[1740424940521,0.75374,2653.1,2653.0,3.96155]
[1740424940921,0.75382,2652.8,2652.7,1.29273]
[1740424941117,3.2078,2653.3,2652.6,3.7811]
[1740424941118,1.88438,2653.1,2652.6,3.7811]
[1740424941428,0.75392,2652.5,2652.4,0.75392]
[1740424941719,0.75392,2652.5,2652.3,6.40145707]
[1740424942021,7.07e-06,2652.7,2652.3,6.40145707]
[1740424942229,7.07e-06,2652.7,2652.6,3.96168]
[1740424942726,7.07e-06,2652.7,2652.6,9.96168]
[1740424943623,3.7596,2654.3,2653.6,1.88399]
[1740424943924,3.7596,2654.3,2653.7,6.4038]
[1740424944124,0.75332,2654.6,2654.1,3.2078]
[1740424944321,0.75332,2654.6,2654.4,0.75334]
[1740424944521,1.9593181,2655.0,2654.2,3.198]
[1740424944522,0.75324,2654.9,2654.7,0.75327]
[1740424944722,0.00565707,2654.8,2654.5,3.2078]
[1740424944918,0.75338,2654.4,2654.2,4.49917707]
[1740424945125,0.7534,2654.3,2654.2,3.74575707]
[1740424945321,0.7534,2654.3,2654.2,3.20465707]
[1740424945529,0.7534,2654.3,2654.2,0.00565707]
[1740424946227,1.8835,2654.3,2653.4,6.4078]
[1740424946628,0.7536,2653.6,2653.4,3.2078]
[1740424946829,0.75359,2653.7,2653.5,0.75362]
[1740424947133,1.88365,2654.1,2653.4,3.2078]
[1740424947330,0.75361,2653.6,2653.4,3.96143]
[1740424947725,0.7536,2653.6,2653.4,3.96143]
[1740424947932,1.88365,2654.1,2653.4,3.2078]
[1740424948429,0.75358,2653.7,2653.5,0.7536]
[1740424948728,0.75363,2653.5,2653.4,3.96144]
[1740424948927,1.88372,2654.0,2653.4,3.96144]
[1740424949127,0.75362,2653.6,2653.5,0.75363]
[1740424949723,0.75362,2653.6,2653.4,3.96144]
[1740424949918,0.75363,2653.5,2653.4,3.2078]
[1740424950124,0.75361,2653.6,2653.4,3.96143]
[1740424950326,3.2078,2654.2,2653.4,3.2078]
[1740424950525,3.2078,2654.2,2653.7,0.75355]
[1740424950826,0.5518,2654.4,2654.0,3.2078]
[1740424951026,3.796,2654.5,2654.0,3.2078]
[1740424951231,3.796,2654.5,2654.0,8.28747]
[1740424951232,1.34156,2654.5,2654.0,8.28747]
[1740424951428,0.5882,2654.5,2654.0,6.4038]
[1740424951632,0.75346,2654.1,2654.0,3.2078]
[1740424952925,0.5882,2654.5,2654.0,3.2078]
[1740424953321,0.00565707,2654.8,2654.4,3.2078]
[1740424953525,0.00565707,2654.8,2654.7,0.75329]
[1740424953728,0.00565707,2654.8,2654.4,3.2078]
[1740424953934,0.00565707,2654.8,2654.5,0.5784]
[1740424954134,0.75331,2654.6,2654.5,0.5784]
[1740424955036,0.75339,2654.4,2654.2,0.75341]
[1740424955535,0.75339,2654.4,2654.1,6.9865]
[1740424955536,1.88322,2654.7,2654.1,6.9865]
[1740424955833,0.00565707,2654.8,2654.1,6.9865]
[1740424956029,0.00565707,2654.8,2654.4,3.2078]
[1740424956229,0.7533,2654.7,2654.6,0.75331]
[1740424956631,0.75331,2654.7,2654.5,0.75332]
[1740424956827,0.00565707,2654.8,2654.5,0.75332]
[1740424957031,0.00565707,2654.8,2654.7,0.75329]
[1740424957232,0.00565707,2654.8,2654.5,3.198]
[1740424957233,0.75331,2654.6,2654.5,3.95133]
[1740424957426,0.7533,2654.7,2654.5,3.95132]
[1740424957626,0.00565707,2654.8,2654.5,3.95132]
[1740424957627,0.75892707,2654.8,2654.7,0.75329]
[1740424957832,0.75331,2654.6,2654.5,3.95133]
[1740424958040,0.75331,2654.6,2654.5,3.198]
[1740424958428,0.00565707,2654.8,2654.4,3.2078]
[1740424958429,0.75334,2654.5,2654.4,3.2078]
[1740424958628,1.88322,2654.7,2654.1,0.5787]
[1740424958935,0.75343,2654.2,2654.1,1.33213]
[1740424959133,0.75343,2654.2,2654.1,0.5787]
[1740424959335,0.75346,2654.1,2654.0,3.193]
[1740424959639,0.75344,2654.2,2654.1,0.75345]
[1740424959836,1.88314,2654.9,2654.3,0.7534]
[1740424959837,3.2078,2654.9,2654.3,0.7534]
[1740424960040,0.7533,2654.7,2654.6,0.75331]
[1740424960226,3.2078,2654.9,2654.4,3.193]
[1740424960227,3.2078,2654.9,2654.4,3.7404]
[1740424960630,0.75331,2654.7,2654.5,0.75334]
[1740424960837,0.75332,2654.6,2654.5,0.75333]
[1740424961033,3.2078,2654.9,2654.4,4.2949]
[1740424961235,0.75334,2654.5,2654.4,4.2949]
[1740424962032,5.09109,2654.6,2654.0,6.3988]
[1740424962237,0.75337,2654.4,2654.3,0.75338]
[1740424962436,0.59695707,2654.8,2654.0,6.3988]
[1740424962638,0.75341,2654.3,2654.2,0.75341]
[1740424963235,1.88324,2654.7,2654.0,6.3988]
[1740424963436,0.59695707,2654.8,2654.0,8.2825]
[1740424963637,0.75338,2654.4,2654.3,0.75338]
[1740424963837,0.59695707,2654.8,2654.0,6.3988]
[1740424964036,1.88324,2654.7,2654.0,6.3988]
[1740424964334,0.75345,2654.2,2654.1,0.75345]
[1740424964737,3.2078,2654.6,2654.0,3.2078]
[1740424964937,0.75354,2653.8,2653.7,3.2078]
[1740424965137,0.7535,2654.0,2653.9,0.7535]
[1740424965538,3.2078,2654.3,2653.7,3.96134]
[1740424965744,0.75354,2653.8,2653.7,3.2078]
[1740424965944,0.75357,2653.7,2653.6,1.29159]
[1740424966139,5.09133,2654.3,2653.4,3.7774]
[1740424966140,3.2078,2654.3,2653.4,3.7774]
[1740424966645,0.06246071,2654.2,2653.4,3.7774]
[1740424966843,3.185,2654.1,2653.4,3.7774]
[1740424967043,3.7472,2654.1,2653.4,3.7774]
[1740424967656,3.2078,2654.0,2653.4,3.7774]
[1740424969663,4.3597,2654.4,2653.7,3.2078]
[1740424969857,4.3597,2654.4,2654.0,3.2078]
[1740424970057,0.00565707,2654.8,2654.0,3.2078]
[1740424970058,3.18,2654.7,2654.0,3.2078]
[1740424970561,3.18,2654.7,2654.1,0.5361]
[1740424971154,6.3878,2654.7,2654.1,0.5361]
[1740424972063,0.06246733,2654.6,2654.1,0.5361]
[1740424972763,1.5745891,2654.6,2654.0,3.2078]
[1740424973055,0.5883,2654.5,2654.0,3.2078]
[1740424973257,0.5883,2654.5,2653.7,6.3878]
[1740424973563,0.86906274,2654.6,2654.0,3.2078]
[1740424973759,0.86906274,2654.6,2654.1,0.5821]
[1740424973958,0.86906274,2654.6,2654.1,1.1461]
[1740424974159,6.3878,2654.7,2654.1,1.1461]
[1740424974356,3.2078,2654.7,2654.1,1.1461]
[1740424975363,4.07716164,2654.7,2654.1,1.1461]
[1740424975663,3.2078,2654.7,2654.1,1.1461]
[1740424976465,4.07693895,2654.7,2654.1,1.1461]
[1740424977065,3.2078,2654.7,2654.1,1.1461]
[1740424977462,4.72019291,2654.7,2654.1,1.1461]
[1740424977664,4.07693895,2654.7,2654.1,1.1461]
[1740424978763,4.45423895,2654.7,2653.8,2.982]
[1740424978964,0.3773,2654.5,2653.8,9.3528]
[1740424980069,0.3773,2654.5,2653.8,3.2078]
[1740424980371,0.5834,2654.4,2653.8,3.2078]
[1740424980564,3.7912,2654.4,2653.7,3.16]
[1740424980764,1.29699246,2654.3,2653.5,7.5094]
[1740424980964,1.23449573,2654.3,2653.5,7.5094]
[1740424981268,1.51273468,2654.3,2653.5,7.5094]
[1740424981464,0.86913895,2654.3,2653.9,3.2078]
[1740424981668,0.5619,2654.6,2654.2,3.2078]
[1740424982366,0.86913895,2654.7,2654.5,3.2078]
[1740424982870,0.00565707,2654.8,2654.5,3.2078]
[1740424983170,1.96763895,2655.4,2654.5,6.1898]
[1740424983171,0.86913895,2655.4,2654.5,6.1898]
[1740424983369,0.86913895,2655.7,2655.3,3.2078]
[1740424983569,0.86913895,2655.7,2655.2,3.171]
[1740424983771,0.75312,2655.3,2655.1,0.75316]
[1740424983967,0.86913895,2655.7,2655.2,3.171]
[1740424984272,3.2078,2655.6,2655.2,3.17]
[1740424984574,0.75305,2655.6,2655.4,0.75308]
[1740424984775,0.75309,2655.4,2655.3,3.2078]
[1740424984968,0.00565707,2655.7,2655.3,3.2078]
[1740424985169,0.75307,2655.5,2655.4,0.75307]
[1740424985473,0.75312,2655.3,2655.2,3.17565707]
[1740424985770,0.75312,2655.3,2655.2,3.92879707]
[1740424985967,0.75312,2655.3,2655.2,0.00565707]
[1740424986666,0.75312,2655.3,2655.2,0.75879707]
[1740424987066,0.75312,2655.3,2655.2,0.00565707]
[1740424988272,5.09598707,2655.7,2655.2,0.00565707]
[1740424988470,0.75312,2655.3,2655.2,0.00565707]
[1740424989471,1.88261,2655.6,2654.9,4.2869]
[1740424989773,0.7532,2655.0,2654.9,5.04012]
[1740424989961,0.7532,2655.0,2654.9,4.2869]
[1740424990162,0.7532,2655.0,2654.9,3.2078]
[1740424990367,1.88274,2655.4,2654.9,3.2078]
[1740424990771,0.7532,2655.0,2654.9,3.2078]
[1740424991572,0.75326,2654.8,2654.7,0.00565707]
[1740424992869,3.96106,2654.8,2654.7,7.07e-06]
[1740424993973,4.02349158,2654.8,2654.7,7.07e-06]
[1740424994373,3.96106,2654.8,2654.7,7.07e-06]
[1740424996381,0.7534,2654.3,2654.2,5.09721]
[1740424996584,0.75331,2654.7,2654.6,0.75329]
[1740424996772,0.75331,2654.7,2654.2,4.3438]
[1740424996773,0.5529,2655.3,2654.5,3.2078]
[1740424997083,0.75331,2654.7,2654.6,0.75328]
[1740424997283,3.7109,2655.3,2654.5,3.2078]
[1740424997583,3.7109,2655.3,2654.7,40.8]
[1740424997984,4.0882,2655.3,2654.7,40.7992]
[1740424998879,0.5529,2655.3,2654.8,3.2078]
[1740424999088,0.00565707,2655.7,2655.1,3.2078]
[1740424999279,0.00565707,2655.7,2655.2,41.3474]